Body Name,Document Number,Service,Type of Expenditure,Invoice Date,Supplier Name,Cost to the Council (Amount Exc VAT),Month
,33558,Planning                      ,Structural Property Works     ,15-Feb-2024,TRIDENT CONSTRUCTION SERVICES LTD       ,"7,220.28",Mar-24
,32709,Planning                      ,Structural Property Works     ,21-Feb-2024,BAILY GARNER LLP                        ,"1,218.00",Mar-24
,32921,Planning                      ,External Property Works       ,29-Feb-2024,COREUS PROJECTS LTD                     ,"2,000.00",Mar-24
,32923,Planning                      ,External Property Works       ,29-Feb-2024,COREUS PROJECTS LTD                     ,"2,403.13",Mar-24
,32920,Planning                      ,External Property Works       ,29-Feb-2024,COREUS PROJECTS LTD                     ,"2,500.00",Mar-24
,32922,Planning                      ,External Property Works       ,29-Feb-2024,COREUS PROJECTS LTD                     ,"3,604.70",Mar-24
,32927,Planning                      ,External Property Works       ,29-Feb-2024,INNES ENGLAND LTD                       ,"1,012.50",Mar-24
,32929,Planning                      ,External Property Works       ,31-Jan-2024,CLUTTONS LLP                            ,"5,000.00",Mar-24
,32948,Human Resources and ICT       ,External Property Works       ,11-Jan-2024,WCL UK LTD                              ,"8,745.92",Mar-24
,32932,Property and Leisure Services ,External Property Works       ,29-Feb-2024,MIDLAND ROOFING SERVICES  (DERBY) LTD   ,"13,093.50",Mar-24
,32886,Operational Services          ,"Plant, Machinery and Equipment",28-Feb-2024,WHITESPACE WORK SOFTWARE LTD            ,"1,900.00",Mar-24
,32887,Operational Services          ,"Plant, Machinery and Equipment",28-Feb-2024,WHITESPACE WORK SOFTWARE LTD            ,"5,000.00",Mar-24
,33188,Regulatory and Housing Service,Disabled Facilities Grant     ,01-Mar-2024,DERBYSHIRE COUNTY COUNCIL...            ,"5,233.00",Mar-24
,33189,Regulatory and Housing Service,Disabled Facilities Grant     ,07-Mar-2024,DERBYSHIRE COUNTY COUNCIL...            ,"7,507.78",Mar-24
,33071,Regulatory and Housing Service,Disabled Facilities Grant     ,28-Nov-2023,DERBYSHIRE COUNTY COUNCIL...            ,"9,802.68",Mar-24
,32962,Regulatory and Housing Service,Disabled Facilities Grant     ,23-Feb-2024,DERBYSHIRE COUNTY COUNCIL...            ,"2,202.60",Mar-24
,32963,Regulatory and Housing Service,Disabled Facilities Grant     ,08-Sep-2023,DERBYSHIRE COUNTY COUNCIL...            ,"4,074.80",Mar-24
,33670,EBC Balance Sheet             ,Lloyds Credit Card Suspense   ,04-Mar-2024,LLOYDS BANK PLC                         ,"8,717.90",Mar-24
,33670,EBC Balance Sheet             ,Lloyds Credit Card Suspense   ,04-Mar-2024,LLOYDS BANK PLC                         ,"4,604.60",Mar-24
,32001,Homelessness                  ,Interpreter Services          ,31-Jan-2024,LANGUAGE LINE LTD                       ,"3,203.60",Mar-24
,32214,Street Scene                  ,Vehicle Sweeper Brushes       ,09-Feb-2024,PROTECTIVE WEAR SUPPLIES LTD            ,380.17,Mar-24
,32672,Civic Transport               ,Hire Charges                  ,23-Feb-2024,PICTORIAL LTD                           ,"2,000.00",Mar-24
,32834,Civic Transport               ,Hire Charges                  ,29-Feb-2024,PINNACLE EXECUTIVE CARS LIMITED         ,906.25,Mar-24
,33138,Corporate Health and Safety   ,Electrical Testing            ,01-Mar-2024,ATMAN UK LTD                            ,"1,857.85",Mar-24
,33283,Transport Trading Account     ,General Equipment             ,08-Mar-2024,CASTLE GROUP LTD                        ,80.29,Mar-24
,32452,Transport Trading Account     ,General Equipment             ,16-Feb-2024,HYTORC (UNEX) LTD                       ,"4,839.00",Mar-24
,32671,Elections                     ,General Equipment             ,23-Feb-2024,STEELCRAFT FABRICATIONS                 ,920.00,Mar-24
,33369,Commissioned Projects         ,General Equipment             ,24-Jan-2024,ACTION 4 COTMANHAY                      ,600.00,Mar-24
,32356,Democratic Representation     ,Maintenance of Equipment      ,15-Feb-2024,CIVICA UK LIMITED                       ,"14,168.64",Mar-24
,32255,CCTV - Ilkeston and Long Eaton,Maintenance of Equipment      ,08-Feb-2024,PEEL ELECTRICAL LTD                     ,384.00,Mar-24
,32601,Cemeteries                    ,Materials and Consumables     ,17-Feb-2024,STANTON RECYCLING LIMITED               ,310.40,Mar-24
,32809,Public Conveniences           ,Materials and Consumables     ,26-Feb-2024,LINEMARK UK LLTD                        ,334.00,Mar-24
,32263,Dog Control                   ,Materials and Consumables     ,07-Feb-2024,ROLLIN TRANSPORT TRAINING               ,50.00,Mar-24
,33073,Trade Waste                   ,Bins                          ,07-Mar-2024,ESE WORLD LIMITED                       ,"6,896.64",Mar-24
,32393,Street Scene                  ,Bins                          ,14-Feb-2024,ROBERT POCHIN LTD                       ,737.04,Mar-24
,32266,Street Scene                  ,Bins                          ,09-Feb-2024,STANTON RECYCLING LIMITED               ,264.80,Mar-24
,32263,Household Waste Collection    ,Personal Protective Equipment ,07-Feb-2024,ROLLIN TRANSPORT TRAINING               ,100.00,Mar-24
,32263,Kerbside Recycling Collection ,Personal Protective Equipment ,07-Feb-2024,ROLLIN TRANSPORT TRAINING               ,200.00,Mar-24
,32894,Community Services            ,Stationery                    ,20-Feb-2024,ENVIRONMENT ANALYST                     ,436.80,Mar-24
,33175,Homelessness                  ,Temporary Accommodation       ,01-Mar-2024,THE BANK HOUSE HOTEL                    ,452.08,Mar-24
,33253,Homelessness                  ,Temporary Accommodation       ,08-Mar-2024,THE BANK HOUSE HOTEL                    ,452.08,Mar-24
,32971,Homelessness                  ,Temporary Accommodation       ,04-Mar-2024,GHHLLP trading as GEORGIAN HOUSE HOTEL  ,452.08,Mar-24
,33256,Homelessness                  ,Temporary Accommodation       ,11-Mar-2024,GHHLLP trading as GEORGIAN HOUSE HOTEL  ,583.33,Mar-24
,32972,Homelessness                  ,Temporary Accommodation       ,04-Mar-2024,GHHLLP trading as GEORGIAN HOUSE HOTEL  ,641.67,Mar-24
,33254,Homelessness                  ,Temporary Accommodation       ,11-Mar-2024,GHHLLP trading as GEORGIAN HOUSE HOTEL  ,641.67,Mar-24
,33255,Homelessness                  ,Temporary Accommodation       ,11-Mar-2024,GHHLLP trading as GEORGIAN HOUSE HOTEL  ,904.17,Mar-24
,32973,Homelessness                  ,Temporary Accommodation       ,04-Mar-2024,GHHLLP trading as GEORGIAN HOUSE HOTEL  ,"1,015.00",Mar-24
,32864,Homelessness                  ,Temporary Accommodation       ,04-Mar-2024,PARAMOUNT HOTEL                         ,420.00,Mar-24
,32866,Homelessness                  ,Temporary Accommodation       ,04-Mar-2024,PARAMOUNT HOTEL                         ,420.00,Mar-24
,32862,Homelessness                  ,Temporary Accommodation       ,04-Mar-2024,PARAMOUNT HOTEL                         ,560.00,Mar-24
,33118,Homelessness                  ,Temporary Accommodation       ,11-Mar-2024,PARAMOUNT HOTEL                         ,560.00,Mar-24
,33121,Homelessness                  ,Temporary Accommodation       ,11-Mar-2024,PARAMOUNT HOTEL                         ,700.00,Mar-24
,32861,Homelessness                  ,Temporary Accommodation       ,04-Mar-2024,PARAMOUNT HOTEL                         ,840.00,Mar-24
,33122,Homelessness                  ,Temporary Accommodation       ,11-Mar-2024,PARAMOUNT HOTEL                         ,840.00,Mar-24
,32952,Homelessness                  ,Temporary Accommodation       ,04-Mar-2024,A38 WOODLANDS                           ,264.00,Mar-24
,32404,Homelessness                  ,Temporary Accommodation       ,19-Feb-2024,A38 WOODLANDS                           ,406.00,Mar-24
,32615,Homelessness                  ,Temporary Accommodation       ,26-Feb-2024,A38 WOODLANDS                           ,406.00,Mar-24
,32950,Homelessness                  ,Temporary Accommodation       ,04-Mar-2024,A38 WOODLANDS                           ,406.00,Mar-24
,33114,Homelessness                  ,Temporary Accommodation       ,11-Mar-2024,A38 WOODLANDS                           ,406.00,Mar-24
,33339,Homelessness                  ,Temporary Accommodation       ,18-Mar-2024,A38 WOODLANDS                           ,406.00,Mar-24
,32386,Homelessness                  ,Temporary Accommodation       ,25-Sep-2023,MR K. SINGH - ADFAN LTD                 ,810.00,Mar-24
,32394,Homelessness                  ,Temporary Accommodation       ,28-Nov-2023,MR K. SINGH - ADFAN LTD                 ,"2,089.00",Mar-24
,32690,Homelessness                  ,Temporary Accommodation       ,23-Feb-2024,GHHLLP trading as GEORGIAN HOUSE HOTEL  ,452.08,Mar-24
,32691,Homelessness                  ,Temporary Accommodation       ,27-Feb-2024,GHHLLP trading as GEORGIAN HOUSE HOTEL  ,452.08,Mar-24
,32693,Homelessness                  ,Temporary Accommodation       ,26-Feb-2024,GHHLLP trading as GEORGIAN HOUSE HOTEL  ,452.08,Mar-24
,32692,Homelessness                  ,Temporary Accommodation       ,21-Feb-2024,GHHLLP trading as GEORGIAN HOUSE HOTEL  ,606.67,Mar-24
,32694,Homelessness                  ,Temporary Accommodation       ,26-Feb-2024,GHHLLP trading as GEORGIAN HOUSE HOTEL  ,641.67,Mar-24
,32695,Homelessness                  ,Temporary Accommodation       ,26-Feb-2024,GHHLLP trading as GEORGIAN HOUSE HOTEL  ,"1,015.00",Mar-24
,31580,Homelessness                  ,Temporary Accommodation       ,22-Jan-2024,VICTORIA PARK HOTEL                     ,276.00,Mar-24
,32399,Homelessness                  ,Temporary Accommodation       ,18-Feb-2024,VICTORIA PARK HOTEL                     ,"1,380.00",Mar-24
,32856,Homelessness                  ,Temporary Accommodation       ,02-Mar-2024,VICTORIA PARK HOTEL                     ,445.00,Mar-24
,32405,Homelessness                  ,Temporary Accommodation       ,19-Feb-2024,PARAMOUNT HOTEL                         ,420.00,Mar-24
,32624,Homelessness                  ,Temporary Accommodation       ,26-Feb-2024,PARAMOUNT HOTEL                         ,420.00,Mar-24
,32408,Homelessness                  ,Temporary Accommodation       ,19-Feb-2024,PARAMOUNT HOTEL                         ,560.00,Mar-24
,32625,Homelessness                  ,Temporary Accommodation       ,26-Feb-2024,PARAMOUNT HOTEL                         ,560.00,Mar-24
,32628,Homelessness                  ,Temporary Accommodation       ,26-Feb-2024,PARAMOUNT HOTEL                         ,700.00,Mar-24
,32394,Homelessness                  ,Temporary Accommodation       ,28-Nov-2023,MR K. SINGH - ADFAN LTD                 ,385.00,Mar-24
,32184,Homelessness Prevention       ,Temporary Accommodation       ,07-Feb-2024,G2 RECRUITMENT SOLUTIONS                ,"1,004.47",Mar-24
,31926,Homelessness Prevention       ,Temporary Accommodation       ,31-Jan-2024,G2 RECRUITMENT SOLUTIONS                ,"1,426.27",Mar-24
,33154,Homelessness Prevention       ,Temporary Accommodation       ,14-Feb-2024,G2 RECRUITMENT SOLUTIONS                ,"1,390.17",Mar-24
,33149,Homelessness Prevention       ,Temporary Accommodation       ,28-Feb-2024,G2 RECRUITMENT SOLUTIONS                ,"1,409.17",Mar-24
,33151,Homelessness Prevention       ,Temporary Accommodation       ,06-Mar-2024,G2 RECRUITMENT SOLUTIONS                ,"1,428.17",Mar-24
,33147,Homelessness Prevention       ,Temporary Accommodation       ,21-Feb-2024,G2 RECRUITMENT SOLUTIONS                ,"1,488.33",Mar-24
,32282,Household Waste Collection    ,Consultants Fees              ,14-Feb-2024,SELLICK PARTNERSHIP RECRUITMENT SPECIAL ,"2,475.00",Mar-24
,32401,Household Waste Collection    ,Consultants Fees              ,18-Feb-2024,SELLICK PARTNERSHIP RECRUITMENT SPECIAL ,"2,475.00",Mar-24
,32618,Trade Waste                   ,Consultants Fees              ,26-Feb-2024,SELLICK PARTNERSHIP RECRUITMENT SPECIAL ,"2,475.00",Mar-24
,32882,Internal Audit                ,Consultants Fees              ,23-Feb-2024,BDO                                     ,"6,440.00",Mar-24
,32808,Development Control           ,Consultants Fees              ,21-Feb-2024,PLANNINGJOBS.COM                        ,695.00,Mar-24
,33531,Development Control           ,Consultants Fees              ,27-Feb-2024,ARUP                                    ,"6,249.83",Mar-24
,33493,Planning Policy               ,Consultants Fees              ,18-Mar-2024,ANDREW GOLLAND ASSOCIATES               ,600.00,Mar-24
,32933,Shared Prosperity             ,Consultants Fees              ,01-Mar-2024,INFORMATION BY DESIGN                   ,"11,850.00",Mar-24
,32931,Erewash Museum                ,Contracted Services           ,29-Feb-2024,SPIRAL ARTS                             ,400.00,Mar-24
,32848,"Police, Crime Commissioner Com",Contracted Services           ,01-Mar-2024,SOUTH DERBYSHIRE CVS.                   ,"4,124.67",Mar-24
,32378,Homelessness Prevention       ,Contracted Services           ,13-Feb-2024,DERBYSHIRE DALES DISTRICT COUNCIL       ,"2,000.00",Mar-24
,32429,Abandoned Vehicle Removal     ,Contracted Services           ,17-Feb-2024,BURROWS RECOVERY                        ,380.00,Mar-24
,32689,CCTV - Ilkeston and Long Eaton,Contracted Services           ,27-Feb-2024,SYNECTICS SECURITY LIMITED              ,"3,075.75",Mar-24
,31932,Car Parking                   ,Contracted Services           ,31-Jan-2024,KINGS ARMOURED SECURITY SERVICES        ,"1,592.10",Mar-24
,32819,Car Parking                   ,Contracted Services           ,28-Feb-2024,KINGS ARMOURED SECURITY SERVICES        ,"1,415.20",Mar-24
,32583,Leisure Services              ,Contracted Services           ,23-Feb-2024,PARKWOOD LEISURE LTD                    ,"13,307.11",Mar-24
,32477,Leisure Services              ,Contracted Services           ,21-Feb-2024,PARKWOOD LEISURE LTD                    ,"27,667.10",Mar-24
,32448,Garden Waste Collection       ,Contracted Services           ,16-Feb-2024,PICTORIAL LTD                           ,500.00,Mar-24
,32450,Garden Waste Collection       ,Contracted Services           ,16-Feb-2024,PICTORIAL LTD                           ,"2,400.00",Mar-24
,32924,Insurances (Corporate Matters),Insurance                     ,21-Feb-2024,PROTECTOR INSURANCE                     ,499.76,Mar-24
,33170,Insurances (Corporate Matters),Insurance                     ,06-Mar-2024,MARSH LTD                               ,"2,800.00",Mar-24
,32823,Front Line Support Services   ,Security                      ,28-Feb-2024,KINGS ARMOURED SECURITY SERVICES        ,360.00,Mar-24
,32826,ICT Support Services          ,Security                      ,29-Feb-2024,EQUILIBRIUM SECURITY SERVICES           ,"9,600.00",Mar-24
,32667,ICT Support Services          ,Security                      ,22-Feb-2024,SOFTCAT LTD                             ,"1,430.00",Mar-24
,33372,Contaminated Land             ,Site Investigations           ,19-Mar-2024,DERBYSHIRE COUNTY COUNCIL...            ,570.82,Mar-24
,32424,Legal Services                ,Stamp Duty and Search Fees    ,20-Feb-2024,SYMONDS AND SAMPSON                     ,"3,602.40",Mar-24
,32827,Dog Control                   ,Veterinary Fees               ,29-Feb-2024,CROWFOOT KENNELS LTD                    ,445.00,Mar-24
,32686,Trade Waste                   ,Waste Disposal                ,22-Jan-2024,DERBYSHIRE COUNTY COUNCIL...            ,"64,936.89",Mar-24
,32571,Trade Waste                   ,Waste Disposal                ,22-Jan-2024,DERBYSHIRE COUNTY COUNCIL...            ,"66,868.24",Mar-24
,32572,Trade Waste                   ,Waste Disposal                ,22-Jan-2024,DERBYSHIRE COUNTY COUNCIL...            ,"68,004.33",Mar-24
,32570,Trade Waste                   ,Waste Disposal                ,22-Jan-2024,DERBYSHIRE COUNTY COUNCIL...            ,"70,054.24",Mar-24
,33771,Homelessness                  ,Fees Costs and Expenses       ,28-Mar-2024,PAUL FOX ESTATE AGENTS                  ,"1,144.00",Mar-24
,33496,Homelessness                  ,Fees Costs and Expenses       ,14-Mar-2024,GRIZZLY PROPERTY INVESTMENT LTD         ,"1,105.00",Mar-24
,33532,Homelessness                  ,Fees Costs and Expenses       ,20-Mar-2024,GRIZZLY PROPERTY INVESTMENT LTD         ,"1,105.00",Mar-24
,33541,Homelessness                  ,Fees Costs and Expenses       ,20-Mar-2024,GRIZZLY PROPERTY INVESTMENT LTD         ,"1,105.00",Mar-24
,33349,Non-domestic Rates Collection ,Fees Costs and Expenses       ,13-Mar-2024,INFORM CPI LTD                          ,"5,120.00",Mar-24
,33350,Non-domestic Rates Collection ,Fees Costs and Expenses       ,14-Mar-2024,INFORM CPI LTD                          ,512.00,Mar-24
,33184,Homelessness                  ,Spend to Save                 ,05-Feb-2024,MR K. SINGH - ADFAN LTD                 ,"1,575.00",Mar-24
,32627,Homelessness                  ,Spend to Save                 ,26-Feb-2024,PARAMOUNT HOTEL                         ,420.00,Mar-24
,32863,Homelessness                  ,Spend to Save                 ,04-Mar-2024,PARAMOUNT HOTEL                         ,420.00,Mar-24
,33476,Homelessness                  ,Spend to Save                 ,14-Mar-2024,GRIZZLY PROPERTY INVESTMENT LTD         ,"1,105.00",Mar-24
,33542,Homelessness                  ,Spend to Save                 ,20-Mar-2024,GRIZZLY PROPERTY INVESTMENT LTD         ,"1,105.00",Mar-24
,33545,Homelessness                  ,Spend to Save                 ,20-Mar-2024,GRIZZLY PROPERTY INVESTMENT LTD         ,"1,105.00",Mar-24
,33546,Homelessness                  ,Spend to Save                 ,21-Mar-2024,GRIZZLY PROPERTY INVESTMENT LTD         ,"1,105.00",Mar-24
,33100,Homelessness Prevention       ,Spend to Save                 ,08-Mar-2024,C WE ARE HERE YOUTH LTD                 ,"2,000.00",Mar-24
,33362,Homelessness Prevention       ,Spend to Save                 ,19-Mar-2024,FUTURES HOUSING GROUP                   ,529.80,Mar-24
,33174,Homelessness Prevention       ,Spend to Save                 ,08-Mar-2024,LEADERS LIMITED                         ,492.00,Mar-24
,32701,Erewash Museum                ,Special Events                ,29-Jan-2024,WHILE I BREATH YOGA                     ,350.00,Mar-24
,33167,Erewash Museum                ,Special Events                ,02-Mar-2024,HISTORICAL PROMOTIONS                   ,395.00,Mar-24
,32681,Infec Disease & Food Poisoning,Work In Default               ,19-Feb-2024,AW LYMN LTD                             ,"1,414.00",Mar-24
,33101,Treasury and Bank Charges     ,Credit/Debit Card Charges     ,08-Mar-2024,ACCESS PAYSUITE LTD - WAS PAY 360       ,"7,908.69",Mar-24
,32847,Car Parking                   ,Credit/Debit Card Charges     ,29-Feb-2024,INTERNATIONAL PARKING SYSTEMS UK LTD    ,"3,428.23",Mar-24
,33941,Treasury and Bank Charges     ,Allpay/Post Office Charges    ,31-Mar-2024,ALLPAY LIMITED                          ,528.96,Mar-24
,32281,Transport Trading Account     ,Computer Software             ,07-Feb-2024,TRUTAC LTD                              ,"1,620.00",Mar-24
,32668,Housing Benefit Administration,Computer Software             ,23-Feb-2024,CIVICA UK LIMITED                       ,"4,699.89",Mar-24
,32872,Development Control           ,Computer Software             ,15-Feb-2024,CIVICA UK LIMITED                       ,"18,161.00",Mar-24
,32872,Building Control - Fee Earning,Computer Software             ,15-Feb-2024,CIVICA UK LIMITED                       ,"5,735.05",Mar-24
,32842,Trade Waste                   ,Software Licences             ,29-Feb-2024,ADVANCED BUSINESS SOFTWARE & SOLUTIONS L,"2,940.00",Mar-24
,32844,Accountancy                   ,Software Licences             ,29-Feb-2024,ADVANCED BUSINESS SOFTWARE & SOLUTIONS L,"63,200.00",Mar-24
,32384,Revenues and Benefits         ,Software Licences             ,15-Feb-2024,CIVICA UK LIMITED                       ,"88,357.18",Mar-24
,31173,Payments                      ,Software Licences             ,05-Jan-2024,INSIGHT DIRECT (UK) LTD                 ,"5,160.96",Mar-24
,32926,ICT Support Services          ,Software Licences             ,29-Feb-2024,PHOENIX SOFTWARE LTD                    ,"1,853.41",Mar-24
,32926,ICT Support Services          ,Software Licences             ,29-Feb-2024,PHOENIX SOFTWARE LTD                    ,"2,971.66",Mar-24
,32267,ICT Support Services          ,Software Licences             ,13-Feb-2024,AXESS SYSTEMS LTD                       ,564.00,Mar-24
,30253,Human Resources               ,Software Licences             ,28-Nov-2023,INSIGHT DIRECT (UK) LTD                 ,570.58,Mar-24
,30514,Human Resources               ,Software Licences             ,11-Dec-2023,INSIGHT DIRECT (UK) LTD                 ,"1,559.25",Mar-24
,32880,ICT Support Services          ,GIS Software Licences         ,27-Feb-2024,ASTUN TECHNOLOGY LTD                    ,"16,500.00",Mar-24
,33107,ICT Support Services          ,Mobile Phones                 ,08-Mar-2024,CLASS AFFINITY PROJECTS LTD             ,"1,421.90",Mar-24
,33551,Revenues and Benefits         ,Postages                      ,26-Mar-2024,FRAMA UK LIMITED                        ,"3,000.00",Mar-24
,32073,Revenues and Benefits         ,Postages                      ,07-Feb-2024,ROYAL MAIL GROUP LTD.                   ,792.65,Mar-24
,32269,Revenues and Benefits         ,Postages                      ,14-Feb-2024,ROYAL MAIL GROUP LTD.                   ,622.55,Mar-24
,32468,Revenues and Benefits         ,Postages                      ,21-Feb-2024,ROYAL MAIL GROUP LTD.                   ,698.30,Mar-24
,32704,Revenues and Benefits         ,Postages                      ,28-Feb-2024,ROYAL MAIL GROUP LTD.                   ,556.90,Mar-24
,32278,Revenues and Benefits         ,Postages                      ,10-Feb-2024,DSI BILLING SERVICES LTD                ,"1,726.54",Mar-24
,33191,Revenues and Benefits         ,Postages                      ,29-Feb-2024,TELSOLUTIONS LTD                        ,300.00,Mar-24
,32883,ICT Support Services          ,Telephones                    ,22-Feb-2024,BRITISH TELECOMMUNICATIONS PLC          ,777.98,Mar-24
,32261,Commissioned Projects         ,Grants and Subscriptions      ,12-Feb-2024,DERBY COUNTY COMMUNITY TRUST            ,"2,305.00",Mar-24
,33529,Basic Command Unit            ,Project Grants                ,20-Mar-2024,DERBYSHIRE COUNTY COUNCIL...            ,300.00,Mar-24
,33142,Community Grants              ,Project Grants                ,11-Mar-2024,ILKESTON ARTS & CAMERA CLUB,800.00,Mar-24
,32919,Economic Development          ,Project Grants                ,29-Feb-2024,INSIDE OUT GROUP (EUROPE) LTD           ,300.00,Mar-24
,33157,Economic Development          ,Project Grants                ,11-Mar-2024,PICK EVERARD                            ,"12,822.50",Mar-24
,33282,Sports Devt Coaching & Courses,Project Grants                ,29-Feb-2024,NAYLOR PARR ASSOCIATES LTD              ,280.00,Mar-24
,33132,Accountancy                   ,Subscriptions                 ,29-Feb-2024,CHARTERED INSTITUTE OF PUBLIC FINANCE & ,"4,237.00",Mar-24
,33655,EBC Balance Sheet             ,NNDR Coll Fund Control Account,19-Mar-2024,"DEPT FOR LEVELLING UP,HOUSING&COMMUNITIE","868,659.00",Mar-24
,33719,EBC Balance Sheet             ,NNDR - Central Government     ,11-Mar-2024,"DEPT FOR LEVELLING UP,HOUSING&COMMUNITIE","1,347,701.00",Mar-24
,33724,EBC Balance Sheet             ,NNDR - Central Government     ,11-Mar-2024,"DEPT FOR LEVELLING UP,HOUSING&COMMUNITIE","1,347,701.00",Mar-24
,32631,EBC Balance Sheet             ,Payroll Coll Acc - Income Tax ,19-Mar-2024,HMRC CUMBERNAULD                        ,445.60,Mar-24
,32634,EBC Balance Sheet             ,Payroll Coll Acc - Income Tax ,19-Mar-2024,HMRC CUMBERNAULD                        ,"77,259.91",Mar-24
,32636,EBC Balance Sheet             ,Payroll Coll Acc Superanuation,13-Mar-2024,DERBYSHIRE COUNTY COUNCIL...            ,"172,662.49",Mar-24
,32636,EBC Balance Sheet             ,Payroll Coll Acc Superanuation,13-Mar-2024,DERBYSHIRE COUNTY COUNCIL...            ,"41,834.00",Mar-24
,32631,EBC Balance Sheet             ,Payroll Coll Acc National Ins ,19-Mar-2024,HMRC CUMBERNAULD                        ,489.93,Mar-24
,32634,EBC Balance Sheet             ,Payroll Coll Acc National Ins ,19-Mar-2024,HMRC CUMBERNAULD                        ,"94,973.49",Mar-24
,32634,EBC Balance Sheet             ,Payroll Coll Acc Student Loan ,19-Mar-2024,HMRC CUMBERNAULD                        ,"1,484.00",Mar-24
,33506,EBC Balance Sheet             ,Payroll Coll Acc - Trade Union,25-Mar-2024,UNISON                                  ,331.20,Mar-24
,33514,EBC Balance Sheet             ,Payroll Coll Acc Labour Party ,25-Mar-2024,EREWASH LABOUR GROUP                    ,"1,318.05",Mar-24
,33505,EBC Balance Sheet             ,Payroll Coll Acc - AVCS       ,25-Mar-2024,PRUDENTIAL                              ,"10,489.65",Mar-24
,32911,EBC Balance Sheet             ,Payroll Coll Acc - AVCS       ,23-Feb-2024,AVC WISE LIMITED                        ,452.09,Mar-24
,33497,EBC Balance Sheet             ,Payroll Coll Acc Attmnt Orders,25-Mar-2024,CHILD MAINTENANCE SERVICE               ,864.74,Mar-24
,33504,EBC Balance Sheet             ,EBC Fit for Work Scheme       ,25-Mar-2024,PARKWOOD LEISURE LTD                    ,510.00,Mar-24
,32914,EBC Balance Sheet             ,Childcare Salary Sacrifice    ,05-Mar-2024,KIDDIVOUCHERS LTD                       ,618.00,Mar-24
,32634,Human Resources               ,Apprenticeship Levy           ,19-Mar-2024,HMRC CUMBERNAULD                        ,"2,153.00",Mar-24
,32634,Human Resources               ,Apprenticeship Levy           ,19-Mar-2024,HMRC CUMBERNAULD                        ,"1,250.00",Mar-24
,32346,Transport Trading Account     ,Agency Staff                  ,11-Feb-2024,INPLACE PERSONNEL SERVICES LTD          ,"1,017.64",Mar-24
,32573,Transport Trading Account     ,Agency Staff                  ,18-Feb-2024,INPLACE PERSONNEL SERVICES LTD          ,535.60,Mar-24
,32803,Transport Trading Account     ,Agency Staff                  ,25-Feb-2024,INPLACE PERSONNEL SERVICES LTD          ,401.70,Mar-24
,32803,Transport Trading Account     ,Agency Staff                  ,25-Feb-2024,INPLACE PERSONNEL SERVICES LTD          ,294.58,Mar-24
,32390,Household Waste Collection    ,Agency Staff                  ,16-Feb-2024,EXTRA PERSONNEL LTD                     ,"4,565.84",Mar-24
,32604,Household Waste Collection    ,Agency Staff                  ,23-Feb-2024,EXTRA PERSONNEL LTD                     ,"4,518.62",Mar-24
,32853,Household Waste Collection    ,Agency Staff                  ,01-Mar-2024,EXTRA PERSONNEL LTD                     ,"6,858.74",Mar-24
,32222,Household Waste Collection    ,Agency Staff                  ,09-Feb-2024,EXTRA PERSONNEL LTD                     ,"2,696.92",Mar-24
,32389,Trade Waste                   ,Agency Staff                  ,16-Feb-2024,EXTRA PERSONNEL LTD                     ,738.36,Mar-24
,32607,Trade Waste                   ,Agency Staff                  ,23-Feb-2024,EXTRA PERSONNEL LTD                     ,738.36,Mar-24
,32849,Trade Waste                   ,Agency Staff                  ,01-Mar-2024,EXTRA PERSONNEL LTD                     ,738.36,Mar-24
,32220,Trade Waste                   ,Agency Staff                  ,09-Feb-2024,EXTRA PERSONNEL LTD                     ,421.92,Mar-24
,32390,Kerbside Recycling Collection ,Agency Staff                  ,16-Feb-2024,EXTRA PERSONNEL LTD                     ,"3,043.89",Mar-24
,32604,Kerbside Recycling Collection ,Agency Staff                  ,23-Feb-2024,EXTRA PERSONNEL LTD                     ,"3,012.41",Mar-24
,32853,Kerbside Recycling Collection ,Agency Staff                  ,01-Mar-2024,EXTRA PERSONNEL LTD                     ,"4,572.50",Mar-24
,32222,Kerbside Recycling Collection ,Agency Staff                  ,09-Feb-2024,EXTRA PERSONNEL LTD                     ,"1,797.94",Mar-24
,33060,Housing Grants Admin and Renov,Agency Staff                  ,07-Mar-2024,PRECISION RESOURCE GROUP LIMITED        ,"3,735.00",Mar-24
,32193,Urban Renewal                 ,Agency Staff                  ,08-Feb-2024,BUCKINGHAM FUTURES LIMITED              ,"1,406.00",Mar-24
,32185,Homelessness                  ,Agency Staff                  ,07-Feb-2024,G2 RECRUITMENT SOLUTIONS                ,844.35,Mar-24
,33152,Homelessness                  ,Agency Staff                  ,07-Feb-2024,G2 RECRUITMENT SOLUTIONS                ,708.07,Mar-24
,33155,Homelessness                  ,Agency Staff                  ,21-Feb-2024,G2 RECRUITMENT SOLUTIONS                ,"1,515.03",Mar-24
,33148,Homelessness                  ,Agency Staff                  ,28-Feb-2024,G2 RECRUITMENT SOLUTIONS                ,"1,633.28",Mar-24
,33150,Homelessness                  ,Agency Staff                  ,06-Mar-2024,G2 RECRUITMENT SOLUTIONS                ,"1,656.93",Mar-24
,33153,Homelessness                  ,Agency Staff                  ,14-Feb-2024,G2 RECRUITMENT SOLUTIONS                ,"1,661.23",Mar-24
,32699,Accountancy                   ,Agency Staff                  ,25-Feb-2024,MACILDOWIE RECRUITMENT EXPERTISE        ,"2,300.00",Mar-24
,32974,Accountancy                   ,Agency Staff                  ,03-Mar-2024,MACILDOWIE RECRUITMENT EXPERTISE        ,"2,875.00",Mar-24
,33172,Accountancy                   ,Agency Staff                  ,10-Mar-2024,MACILDOWIE RECRUITMENT EXPERTISE        ,"2,875.00",Mar-24
,33371,Accountancy                   ,Agency Staff                  ,17-Mar-2024,MACILDOWIE RECRUITMENT EXPERTISE        ,"2,875.00",Mar-24
,32228,Council Tax Support Admin     ,Agency Staff                  ,12-Feb-2024,BUSINESS SMART SOLUTIONS LIMITED        ,"1,230.83",Mar-24
,32457,Council Tax Support Admin     ,Agency Staff                  ,19-Feb-2024,BUSINESS SMART SOLUTIONS LIMITED        ,"1,289.17",Mar-24
,32659,Council Tax Support Admin     ,Agency Staff                  ,26-Feb-2024,BUSINESS SMART SOLUTIONS LIMITED        ,"1,297.92",Mar-24
,33518,Council Tax Support Admin     ,Agency Staff                  ,25-Mar-2024,BUSINESS SMART SOLUTIONS LIMITED        ,"1,277.50",Mar-24
,32812,Building Control - Fee Earning,Agency Staff                  ,29-Feb-2024,MATCHTECH GROUP (UK) LIMITED            ,825.00,Mar-24
,32186,Building Control - Fee Earning,Agency Staff                  ,08-Feb-2024,MATCHTECH GROUP (UK) LIMITED            ,825.00,Mar-24
,32351,Building Control - Fee Earning,Agency Staff                  ,15-Feb-2024,MATCHTECH GROUP (UK) LIMITED            ,825.00,Mar-24
,32578,Building Control - Fee Earning,Agency Staff                  ,22-Feb-2024,MATCHTECH GROUP (UK) LIMITED            ,825.00,Mar-24
,32391,Public Conveniences           ,Agency Staff                  ,16-Feb-2024,EXTRA PERSONNEL LTD                     ,500.00,Mar-24
,32608,Public Conveniences           ,Agency Staff                  ,23-Feb-2024,EXTRA PERSONNEL LTD                     ,500.00,Mar-24
,32854,Public Conveniences           ,Agency Staff                  ,01-Mar-2024,EXTRA PERSONNEL LTD                     ,500.00,Mar-24
,32219,Public Conveniences           ,Agency Staff                  ,09-Feb-2024,EXTRA PERSONNEL LTD                     ,500.00,Mar-24
,32389,Street Scene                  ,Agency Staff                  ,16-Feb-2024,EXTRA PERSONNEL LTD                     ,650.46,Mar-24
,32392,Street Scene                  ,Agency Staff                  ,16-Feb-2024,EXTRA PERSONNEL LTD                     ,"4,388.16",Mar-24
,32391,Street Scene                  ,Agency Staff                  ,16-Feb-2024,EXTRA PERSONNEL LTD                     ,"4,231.00",Mar-24
,32607,Street Scene                  ,Agency Staff                  ,23-Feb-2024,EXTRA PERSONNEL LTD                     ,650.46,Mar-24
,32605,Street Scene                  ,Agency Staff                  ,23-Feb-2024,EXTRA PERSONNEL LTD                     ,"4,519.41",Mar-24
,32608,Street Scene                  ,Agency Staff                  ,23-Feb-2024,EXTRA PERSONNEL LTD                     ,"4,340.04",Mar-24
,32849,Street Scene                  ,Agency Staff                  ,01-Mar-2024,EXTRA PERSONNEL LTD                     ,685.62,Mar-24
,32852,Street Scene                  ,Agency Staff                  ,01-Mar-2024,EXTRA PERSONNEL LTD                     ,"2,929.98",Mar-24
,32854,Street Scene                  ,Agency Staff                  ,01-Mar-2024,EXTRA PERSONNEL LTD                     ,"4,284.97",Mar-24
,32220,Street Scene                  ,Agency Staff                  ,09-Feb-2024,EXTRA PERSONNEL LTD                     ,650.46,Mar-24
,32223,Street Scene                  ,Agency Staff                  ,09-Feb-2024,EXTRA PERSONNEL LTD                     ,"4,553.91",Mar-24
,32219,Street Scene                  ,Agency Staff                  ,09-Feb-2024,EXTRA PERSONNEL LTD                     ,"4,314.96",Mar-24
,32221,Long Eaton Market             ,Agency Staff                  ,09-Feb-2024,EXTRA PERSONNEL LTD                     ,295.92,Mar-24
,32347,Long Eaton Market             ,Agency Staff                  ,10-Feb-2024,WORKCHAIN LTD                           ,207.90,Mar-24
,32388,Ilkeston Market               ,Agency Staff                  ,16-Feb-2024,EXTRA PERSONNEL LTD                     ,493.20,Mar-24
,32606,Ilkeston Market               ,Agency Staff                  ,23-Feb-2024,EXTRA PERSONNEL LTD                     ,501.30,Mar-24
,32851,Ilkeston Market               ,Agency Staff                  ,01-Mar-2024,EXTRA PERSONNEL LTD                     ,501.30,Mar-24
,32221,Ilkeston Market               ,Agency Staff                  ,09-Feb-2024,EXTRA PERSONNEL LTD                     ,197.28,Mar-24
,32347,Ilkeston Market               ,Agency Staff                  ,10-Feb-2024,WORKCHAIN LTD                           ,138.60,Mar-24
,32387,Civic Accommodation Ilkeston  ,Agency Staff                  ,16-Feb-2024,EXTRA PERSONNEL LTD                     ,372.08,Mar-24
,32609,Civic Accommodation Ilkeston  ,Agency Staff                  ,23-Feb-2024,EXTRA PERSONNEL LTD                     ,351.78,Mar-24
,32218,Civic Accommodation Ilkeston  ,Agency Staff                  ,09-Feb-2024,EXTRA PERSONNEL LTD                     ,304.43,Mar-24
,32387,Toll Bar House                ,Agency Staff                  ,16-Feb-2024,EXTRA PERSONNEL LTD                     ,250.65,Mar-24
,32609,Toll Bar House                ,Agency Staff                  ,23-Feb-2024,EXTRA PERSONNEL LTD                     ,250.65,Mar-24
,32707,Occupational Health & Welfare ,Occupational Health Service   ,07-Feb-2024,MEDIGOLD HEALTH CONSULTANCY LIMITED     ,852.00,Mar-24
,32888,Training - HR Only            ,E Learning                    ,28-Feb-2024,LEARNING POOL LTD                       ,"9,033.00",Mar-24
,32925,Revenues and Benefits         ,Courses and Seminars          ,29-Feb-2024,LA DIRECTORIES LIMITED                  ,325.00,Mar-24
,32814,Street Scene                  ,Training                      ,29-Feb-2024,AEBI SCHMIDT UK LTD                     ,383.33,Mar-24
,33181,Car Parking                   ,Planned Preventative Maintenan,12-Mar-2024,ASSURED SURFACING & CONSTRUCTION LTD    ,"1,425.00",Mar-24
,31835,Car Parking                   ,Planned Preventative Maintenan,28-Jan-2024,ATG ACCESS LTD                          ,500.00,Mar-24
,32879,Car Parking                   ,Planned Preventative Maintenan,28-Feb-2024,CLEARWAY (MIDLANDS) LIMITED             ,"1,738.00",Mar-24
,32178,Car Parking                   ,Planned Preventative Maintenan,07-Feb-2024,CLEARWAY (MIDLANDS) LIMITED             ,592.00,Mar-24
,32178,Car Parking                   ,Planned Preventative Maintenan,07-Feb-2024,CLEARWAY (MIDLANDS) LIMITED             ,390.00,Mar-24
,33096,Pedestrian Zones - Ilk and LE ,Planned Preventative Maintenan,20-Feb-2024,ASSURED SURFACING & CONSTRUCTION LTD    ,780.00,Mar-24
,33096,Pedestrian Zones - Ilk and LE ,Planned Preventative Maintenan,20-Feb-2024,ASSURED SURFACING & CONSTRUCTION LTD    ,920.00,Mar-24
,32375,Property and Estates          ,Planned Preventative Maintenan,16-Feb-2024,ALPHA PARTNER (MIDLANDS)  LIMITED       ,776.00,Mar-24
,32622,Property and Estates          ,Repairs and Maintenance       ,19-Feb-2024,KEY INTEGRATED SERVICES LTD             ,596.53,Mar-24
,32945,Property and Estates          ,Repairs and Maintenance       ,24-Jan-2024,ORTON MECHANICAL SERVICES               ,419.50,Mar-24
,32420,Property and Estates          ,Repairs and Maintenance       ,20-Feb-2024,PEEL ELECTRICAL LTD                     ,297.69,Mar-24
,32662,Property and Estates          ,Repairs and Maintenance       ,26-Feb-2024,PEEL ELECTRICAL LTD                     ,368.26,Mar-24
,32688,Property and Estates          ,Repairs and Maintenance       ,27-Feb-2024,ACCESS DOORS LTD                        ,265.00,Mar-24
,32422,Property and Estates          ,Repairs and Maintenance       ,20-Feb-2024,ACCESS DOORS LTD                        ,435.00,Mar-24
,32580,Property and Estates          ,Repairs and Maintenance       ,22-Feb-2024,ALPHA PARTNER (MIDLANDS)  LIMITED       ,255.00,Mar-24
,32807,Green Space                   ,Reactive Maintenance          ,27-Feb-2024,ALPHA DRAIN SERVICES                    ,480.00,Mar-24
,32928,Green Space                   ,Reactive Maintenance          ,27-Feb-2024,ASSURED SURFACING & CONSTRUCTION LTD    ,"1,950.00",Mar-24
,32179,Car Parking                   ,Reactive Maintenance          ,07-Feb-2024,CLEARWAY (MIDLANDS) LIMITED             ,"1,640.00",Mar-24
,32375,Property and Estates          ,Reactive Maintenance          ,16-Feb-2024,ALPHA PARTNER (MIDLANDS)  LIMITED       ,149.00,Mar-24
,32374,Property and Estates          ,Reactive Maintenance          ,16-Feb-2024,ALPHA PARTNER (MIDLANDS)  LIMITED       ,"1,047.00",Mar-24
,32376,Property and Estates          ,Reactive Maintenance          ,16-Feb-2024,ALPHA PARTNER (MIDLANDS)  LIMITED       ,"1,406.00",Mar-24
,32377,Property and Estates          ,Reactive Maintenance          ,16-Feb-2024,ALPHA PARTNER (MIDLANDS)  LIMITED       ,"1,579.40",Mar-24
,32603,Property and Estates          ,Reactive Maintenance          ,23-Feb-2024,ALPHA PARTNER (MIDLANDS)  LIMITED       ,430.00,Mar-24
,32586,Property and Estates          ,Reactive Maintenance          ,23-Feb-2024,ALPHA PARTNER (MIDLANDS)  LIMITED       ,894.00,Mar-24
,32838,Property and Estates          ,Reactive Maintenance          ,01-Mar-2024,ALPHA PARTNER (MIDLANDS)  LIMITED       ,620.00,Mar-24
,32705,Property and Estates          ,Reactive Maintenance          ,28-Feb-2024,ALPHA PARTNER (MIDLANDS)  LIMITED       ,767.00,Mar-24
,32074,Property and Estates          ,Reactive Maintenance          ,07-Feb-2024,ALPHA PARTNER (MIDLANDS)  LIMITED       ,350.00,Mar-24
,32828,Cotmanhay Pavilion            ,PPM Mechanical and Equipment  ,26-Feb-2024,SMS CONNECTIONS LTD                     ,478.76,Mar-24
,32620,Parks Changing Rooms          ,PPM Mechanical and Equipment  ,23-Feb-2024,KEY INTEGRATED SERVICES LTD             ,321.75,Mar-24
,32455,Merlin Way Depot              ,PPM Mechanical and Equipment  ,14-Feb-2024,KEY INTEGRATED SERVICES LTD             ,507.00,Mar-24
,32917,Civic Accommodation Long Eaton,PPM Mechanical and Equipment  ,05-Jan-2024,KEY INTEGRATED SERVICES LTD             ,341.25,Mar-24
,32916,Civic Accommodation Long Eaton,PPM Mechanical and Equipment  ,05-Jan-2024,KEY INTEGRATED SERVICES LTD             ,409.48,Mar-24
,32061,Civic Accommodation Long Eaton,PPM Mechanical and Equipment  ,06-Feb-2024,NORWOOD ELECTRICAL UK LTD               ,"3,084.49",Mar-24
,32416,Civic Accommodation Ilkeston  ,PPM Mechanical and Equipment  ,19-Feb-2024,PEEL ELECTRICAL LTD                     ,"3,628.52",Mar-24
,32585,Property and Estates          ,Alarms Reactive Maintenance   ,25-Sep-2023,EREWASH PARTNERSHIP (MANAGED WORKSPACE) ,600.00,Mar-24
,32430,Erewash Museum                ,Electricity                   ,14-Feb-2024,TOTALENERGIES GAS & POWER LTD           ,"1,186.47",Mar-24
,32430,Cotmanhay Pavilion            ,Electricity                   ,14-Feb-2024,TOTALENERGIES GAS & POWER LTD           ,345.91,Mar-24
,32366,Green Space                   ,Electricity                   ,14-Feb-2024,TOTALENERGIES GAS & POWER LTD           ,"2,862.07",Mar-24
,32430,Green Space                   ,Electricity                   ,14-Feb-2024,TOTALENERGIES GAS & POWER LTD           ,"4,882.07",Mar-24
,32430,Green Space                   ,Electricity                   ,14-Feb-2024,TOTALENERGIES GAS & POWER LTD           ,"1,329.09",Mar-24
,32430,Cemeteries                    ,Electricity                   ,14-Feb-2024,TOTALENERGIES GAS & POWER LTD           ,580.30,Mar-24
,32430,Public Conveniences           ,Electricity                   ,14-Feb-2024,TOTALENERGIES GAS & POWER LTD           ,459.97,Mar-24
,32430,Public Conveniences           ,Electricity                   ,14-Feb-2024,TOTALENERGIES GAS & POWER LTD           ,854.72,Mar-24
,32430,CCTV - Ilkeston and Long Eaton,Electricity                   ,14-Feb-2024,TOTALENERGIES GAS & POWER LTD           ,961.45,Mar-24
,32430,Car Parking                   ,Electricity                   ,14-Feb-2024,TOTALENERGIES GAS & POWER LTD           ,"2,030.67",Mar-24
,32366,Long Eaton Market             ,Electricity                   ,14-Feb-2024,TOTALENERGIES GAS & POWER LTD           ,342.55,Mar-24
,32430,Ilkeston Market               ,Electricity                   ,14-Feb-2024,TOTALENERGIES GAS & POWER LTD           ,"1,210.18",Mar-24
,32430,Shopmobility - Long Eaton     ,Electricity                   ,14-Feb-2024,TOTALENERGIES GAS & POWER LTD           ,675.46,Mar-24
,32366,Merlin Way Depot              ,Electricity                   ,14-Feb-2024,TOTALENERGIES GAS & POWER LTD           ,"4,305.20",Mar-24
,32366,Civic Accommodation Long Eaton,Electricity                   ,14-Feb-2024,TOTALENERGIES GAS & POWER LTD           ,"4,362.35",Mar-24
,32366,Civic Accommodation Ilkeston  ,Electricity                   ,14-Feb-2024,TOTALENERGIES GAS & POWER LTD           ,"3,683.99",Mar-24
,32430,Civic Accommodation Ilkeston  ,Electricity                   ,14-Feb-2024,TOTALENERGIES GAS & POWER LTD           ,"1,195.48",Mar-24
,32365,Erewash Museum                ,Gas                           ,14-Feb-2024,TOTALENERGIES GAS & POWER LTD           ,"1,588.68",Mar-24
,32365,Green Space                   ,Gas                           ,14-Feb-2024,TOTALENERGIES GAS & POWER LTD           ,"1,225.00",Mar-24
,32365,Merlin Way Depot              ,Gas                           ,14-Feb-2024,TOTALENERGIES GAS & POWER LTD           ,"2,693.21",Mar-24
,32365,Civic Accommodation Long Eaton,Gas                           ,14-Feb-2024,TOTALENERGIES GAS & POWER LTD           ,"3,866.63",Mar-24
,32365,Civic Accommodation Ilkeston  ,Gas                           ,14-Feb-2024,TOTALENERGIES GAS & POWER LTD           ,"6,597.57",Mar-24
,32365,Rutland Sports Park           ,Gas                           ,14-Feb-2024,TOTALENERGIES GAS & POWER LTD           ,353.89,Mar-24
,32958,Transport Trading Account     ,Lubricants and Anti-freeze    ,26-Feb-2024,DERBY BEARINGS LIMITED                  ,627.70,Mar-24
,32960,Household Waste Collection    ,Repairs and Maintenance       ,23-Feb-2024,DENNIS EAGLE LTD                        ,261.99,Mar-24
,32960,Household Waste Collection    ,Repairs and Maintenance       ,23-Feb-2024,DENNIS EAGLE LTD                        ,352.88,Mar-24
,32456,Household Waste Collection    ,Repairs and Maintenance       ,07-Feb-2024,DENNIS EAGLE LTD                        ,320.07,Mar-24
,32893,Household Waste Collection    ,Repairs and Maintenance       ,27-Feb-2024,DERBY BEARINGS LIMITED                  ,898.00,Mar-24
,32677,Household Waste Collection    ,Repairs and Maintenance       ,23-Feb-2024,TERBERG MATEC UK                        ,666.10,Mar-24
,32425,Household Waste Collection    ,Repairs and Maintenance       ,19-Feb-2024,EUROTRUCK MIDLANDS LTD                  ,318.00,Mar-24
,32432,Household Waste Collection    ,Repairs and Maintenance       ,12-Feb-2024,EUROTRUCK MIDLANDS LTD                  ,728.73,Mar-24
,32434,Household Waste Collection    ,Repairs and Maintenance       ,09-Feb-2024,EUROTRUCK MIDLANDS LTD                  ,440.00,Mar-24
,32434,Household Waste Collection    ,Repairs and Maintenance       ,09-Feb-2024,EUROTRUCK MIDLANDS LTD                  ,385.00,Mar-24
,32596,Household Waste Collection    ,Repairs and Maintenance       ,19-Feb-2024,WASTE PARTS UK LTD                      ,309.82,Mar-24
,32596,Household Waste Collection    ,Repairs and Maintenance       ,19-Feb-2024,WASTE PARTS UK LTD                      ,318.09,Mar-24
,32885,Household Waste Collection    ,Repairs and Maintenance       ,28-Feb-2024,WASTE PARTS UK LTD                      ,485.95,Mar-24
,32885,Household Waste Collection    ,Repairs and Maintenance       ,28-Feb-2024,WASTE PARTS UK LTD                      ,971.90,Mar-24
,32674,Household Waste Collection    ,Repairs and Maintenance       ,08-Feb-2024,WILLIAM WEST & SONS (ILKESTON) LIMITED  ,500.00,Mar-24
,32937,Trade Waste                   ,Repairs and Maintenance       ,29-Feb-2024,BOC LTD                                 ,650.46,Mar-24
,32451,Street Scene                  ,Repairs and Maintenance       ,16-Feb-2024,RUSSELLS (KIRBYMOORSIDE) LIMITED        ,652.77,Mar-24
,33283,Street Scene                  ,Repairs and Maintenance       ,08-Mar-2024,CASTLE GROUP LTD                        ,434.71,Mar-24
,32600,Street Scene                  ,Repairs and Maintenance       ,20-Feb-2024,EUROTRUCK MIDLANDS LTD                  ,318.00,Mar-24
,31931,Household Waste Collection    ,Tyres                         ,31-Jan-2024,LODGE TYRE COMPANY LTD                  ,"5,093.65",Mar-24
,31931,Kerbside Recycling Collection ,Tyres                         ,31-Jan-2024,LODGE TYRE COMPANY LTD                  ,600.00,Mar-24
,31931,Green Space                   ,Tyres                         ,31-Jan-2024,LODGE TYRE COMPANY LTD                  ,174.00,Mar-24
,31931,Street Scene                  ,Tyres                         ,31-Jan-2024,LODGE TYRE COMPANY LTD                  ,183.00,Mar-24
,33103,Cemeteries                    ,Exc. Right Burial (and Cert)  ,08-Mar-2024,REDACTED PERSONAL DATA,754.00,Mar-24
,33344,Development Control           ,Planning Fees                 ,18-Mar-2024,PORTALPLANQUEST LTD                     ,258.00,Mar-24
,32663,Toll Bar House                ,Alarms Planned Maintenence    ,27-Feb-2024,TECSERV UK                              ,256.76,Mar-24
,32366,Bridge House - Long Eaton     ,Electricity                   ,14-Feb-2024,TOTALENERGIES GAS & POWER LTD           ,839.02,Mar-24
,32430,Toll Bar House                ,Electricity                   ,14-Feb-2024,TOTALENERGIES GAS & POWER LTD           ,"18,059.69",Mar-24
,32365,Bridge House - Long Eaton     ,Gas                           ,14-Feb-2024,TOTALENERGIES GAS & POWER LTD           ,"1,144.06",Mar-24
,33657,Non Domestic Rates Retention  ,NNDR Tariff                   ,19-Mar-2024,DERBY CITY COUNCIL                      ,"531,923.64",Mar-24
